fUST/lending_fUST_20250516
["ID","MTS","AMOUNT","RATE_DAILY","PERIOD"]
[361215522,1747349451060,-450.0,0.00013835,2]
[361215523,1747349451069,-450.0,0.00013835,2]
[361215524,1747349451081,-450.0,0.00013835,2]
[361215525,1747349451090,-450.0,0.00013835,2]
[361215526,1747349451099,-450.0,0.00013835,2]
[361215527,1747349451109,-450.0,0.00013835,2]
[361215528,1747349451121,-971.83,0.00013835,2]
[361215529,1747349451132,-450.0,0.00013835,2]
[361215530,1747349451141,-450.0,0.00013835,2]
[361215531,1747349451150,-450.0,0.00013835,2]
[361215532,1747349451160,-471.33,0.00013835,2]
[361215533,1747349451169,-957.71,0.00013835,2]
[361215534,1747349451179,-1886.65,0.00013835,2]
[361215535,1747349451188,-450.0,0.00013835,2]
[361215536,1747349451197,-1231.9,0.00013835,2]
[361215537,1747349451208,-450.0,0.00013835,2]
[361215538,1747349451217,-450.0,0.00013835,2]
[361215539,1747349451227,-559.08,0.00013835,2]
[361215540,1747349451236,-6648.05,0.00013835,2]
[361215541,1747349451246,-450.0,0.00013835,2]
[361215542,1747349451256,-438.64,0.00013835,2]
[361215543,1747349451265,-450.0,0.00013835,2]
[361215544,1747349451274,-450.0,0.00013835,2]
[361215545,1747349451284,-450.0,0.00013835,2]
[361215546,1747349451295,-450.0,0.00013835,2]
[361215547,1747349451304,-942.29,0.00013835,2]
[361215548,1747349451314,-1069.21,0.00013835,2]
[361215549,1747349451331,-873.52,0.00013835,2]
[361215550,1747349451354,-450.0,0.00013835,2]
[361215551,1747349451371,-450.0,0.00013835,2]
[361215552,1747349451393,-1850.54,0.00013835,2]
[361215553,1747349451414,-1738.18,0.00013835,2]
[361215554,1747349451431,-450.0,0.00013835,2]
[361215555,1747349451449,-505.06,0.00013835,2]
[361215556,1747349451464,-400.0,0.00013835,2]
[361215557,1747349451482,-450.0,0.00013835,2]
[361215558,1747349451503,-450.0,0.00013835,2]
[361215559,1747349451522,-450.0,0.00013835,2]
[361215560,1747349451535,-450.0,0.00013835,2]
[361215561,1747349451555,-2142.16,0.00013835,2]
[361215562,1747349451569,-450.0,0.00013835,2]
[361215563,1747349451587,-450.0,0.00013835,2]
[361215564,1747349451601,-1706.81,0.00013835,2]
[361215565,1747349451615,-450.0,0.00013835,2]
[361215566,1747349451631,-450.0,0.00013835,2]
[361215567,1747349451646,-450.0,0.00013835,2]
[361215568,1747349451660,-597.99,0.00013835,2]
[361215569,1747349451674,-450.0,0.00013835,2]
[361215570,1747349451691,-503.09,0.00013835,2]
[361215571,1747349451706,-450.0,0.00013835,2]
[361215572,1747349451721,-668.52,0.00013835,2]
[361215573,1747349451735,-753.15,0.00013835,2]
[361215574,1747349451749,-1752.8,0.00013835,2]
[361215575,1747349451764,-450.0,0.00013835,2]
[361215576,1747349451778,-832.69,0.00013835,2]
[361215577,1747349451793,-1118.26,0.00013835,2]
[361215578,1747349451808,-1149.62,0.00013835,2]
[361215579,1747349451823,-450.0,0.00013835,2]
[361215580,1747349451837,-450.0,0.00013835,2]
[361215581,1747349451852,-450.0,0.00013835,2]
[361215582,1747349451867,-2310.54,0.00013835,2]
[361215583,1747349451881,-450.0,0.00013835,2]
[361215584,1747349451895,-1069.65,0.00013835,2]
[361215585,1747349451909,-450.0,0.00013835,2]
[361215586,1747349451923,-450.0,0.00013835,2]
[361215587,1747349451937,-450.0,0.00013835,2]
[361215588,1747349451952,-450.0,0.00013835,2]
[361215589,1747349451967,-647.63,0.00013835,2]
[361215590,1747349451982,-550.0,0.00013835,2]
[361215591,1747349451996,-2035.29,0.00013835,2]
[361215592,1747349452010,-450.0,0.00013835,2]
[361215593,1747349452024,-4339.78,0.00013835,2]
[361215594,1747349452039,-450.0,0.00013835,2]
[361215595,1747349452054,-450.0,0.00013835,2]
[361215596,1747349452069,-6928.76,0.00013835,2]
[361215597,1747349452081,-400.0,0.00013835,2]
[361215598,1747349452091,-8237.45,0.00013835,2]
[361215599,1747349452100,-450.0,0.00013835,2]
[361215600,1747349452110,-450.0,0.00013835,2]
[361215601,1747349452119,-1696.17,0.00013835,2]
[361215602,1747349452129,-1194.39,0.00013835,2]
[361215603,1747349452139,-450.0,0.00013835,2]
[361215604,1747349452311,-530.7,0.00013835,2]
[361215605,1747349452338,-450.0,0.00013835,2]
[361215606,1747349452349,-1288.13,0.00013835,2]
[361215607,1747349452359,-2241.39,0.00013835,2]
[361215608,1747349452369,-450.0,0.00013835,2]
[361215609,1747349452379,-1728.79,0.00013835,2]
[361215610,1747349452388,-450.0,0.00013835,2]
[361215611,1747349452398,-450.0,0.00013835,2]
[361215612,1747349452409,-450.0,0.00013835,2]
[361215613,1747349452418,-1108.58,0.00013835,2]
[361215614,1747349452429,-450.0,0.00013835,2]
[361215615,1747349452438,-2502.88,0.00013835,2]
[361215616,1747349452448,-450.0,0.00013835,2]
[361215617,1747349452458,-450.0,0.00013835,2]
[361215618,1747349452467,-1335.36,0.00013835,2]
[361215619,1747349452477,-450.0,0.00013835,2]
[361215620,1747349452487,-1504.83,0.00013835,2]
[361215621,1747349452497,-450.0,0.00013835,2]
[361215622,1747349452506,-533.65,0.00013835,2]
[361215623,1747349452516,-224.61430791,0.00013835,2]
[361215624,1747349452525,-450.0,0.00013835,2]
[361215625,1747349452535,-910.74,0.00013835,2]
[361215626,1747349452544,-10132.57,0.00013835,2]
[361215627,1747349452553,-450.0,0.00013835,2]
[361215628,1747349452563,-2341.76,0.00013835,2]
[361215629,1747349452572,-450.0,0.00013835,2]
[361215630,1747349452581,-450.0,0.00013835,2]
[361215631,1747349452590,-450.0,0.00013835,2]
[361215632,1747349452599,-512.53,0.00013835,2]
[361215633,1747349452609,-450.0,0.00013835,2]
[361215634,1747349452618,-450.0,0.00013835,2]
[361215635,1747349452627,-450.0,0.00013835,2]
[361215636,1747349452636,-1259.78,0.00013835,2]
[361215637,1747349452646,-696.5,0.00013835,2]
[361215638,1747349452655,-1194.16,0.00013835,2]
[361215639,1747349452664,-865.8,0.00013835,2]
[361215640,1747349452674,-450.0,0.00013835,2]
[361215641,1747349452683,-5552.21,0.00013835,2]
[361215642,1747349452692,-450.0,0.00013835,2]
[361215643,1747349452702,-400.0,0.00013835,2]
[361215644,1747349452711,-450.0,0.00013835,2]
[361215645,1747349452721,-2250.06,0.00013835,2]
[361215646,1747349452730,-450.0,0.00013835,2]
[361215647,1747349452739,-350.0,0.00013835,2]
[361215648,1747349452748,-2471.97,0.00013835,2]
[361215649,1747349452758,-450.0,0.00013835,2]
[361215650,1747349452767,-335.67498951,0.00013835,2]
[361215651,1747349452776,-1503.65,0.00013835,2]
[361215652,1747349452786,-450.0,0.00013835,2]
[361215653,1747349452796,-450.0,0.00013835,2]
[361215654,1747349452805,-450.0,0.00013835,2]
[361215655,1747349452814,-450.0,0.00013835,2]
[361215656,1747349452823,-450.0,0.00013835,2]
[361215657,1747349452834,-450.0,0.00013835,2]
[361215658,1747349452845,-450.0,0.00013835,2]
[361215659,1747349452855,-3778.66,0.00013835,2]
[361215660,1747349452865,-450.0,0.00013835,2]
[361215661,1747349452874,-450.0,0.00013835,2]
[361215662,1747349452883,-450.0,0.00013835,2]
[361215663,1747349452894,-450.0,0.00013835,2]
[361215664,1747349452904,-450.0,0.00013835,2]
[361215665,1747349452913,-450.0,0.00013835,2]
[361215666,1747349452923,-457.35,0.00013835,2]
[361215667,1747349452932,-450.0,0.00013835,2]
[361215668,1747349452941,-545.72,0.00013835,2]
[361215669,1747349452951,-450.0,0.00013835,2]
[361215670,1747349452960,-450.0,0.00013835,2]
[361215671,1747349452972,-450.0,0.00013835,2]
[361215672,1747349452981,-1310.95,0.00013835,2]
[361215673,1747349452991,-450.0,0.00013835,2]
[361215674,1747349453000,-450.0,0.00013835,2]
[361215675,1747349453009,-788.79,0.00013835,2]
[361215676,1747349453018,-450.0,0.00013835,2]
[361215677,1747349453027,-450.0,0.00013835,2]
[361215678,1747349453036,-400.0,0.00013835,2]
[361215679,1747349453046,-450.0,0.00013835,2]
[361215680,1747349453055,-450.0,0.00013835,2]
[361215681,1747349453065,-450.0,0.00013835,2]
[361215682,1747349453076,-7350.83,0.00013835,2]
[361215683,1747349453085,-400.0,0.00013835,2]
[361215684,1747349453096,-450.0,0.00013835,2]
[361215685,1747349453106,-1351.33,0.00013835,2]
[361215686,1747349453115,-450.0,0.00013835,2]
[361215687,1747349453128,-450.0,0.00013835,2]
[361215688,1747349453139,-450.0,0.00013835,2]
[361215689,1747349453149,-590.37,0.00013835,2]
[361215690,1747349453158,-1917.35,0.00013835,2]
[361215691,1747349453168,-400.0,0.00013835,2]
[361215692,1747349453179,-1250.24,0.00013835,2]
[361215693,1747349453188,-2440.22,0.00013835,2]
[361215694,1747349453198,-450.0,0.00013835,2]
[361215695,1747349453208,-450.0,0.00013835,2]
[361215696,1747349453217,-450.0,0.00013835,2]
[361215697,1747349453227,-450.0,0.00013835,2]
[361215698,1747349453236,-450.0,0.00013835,2]
[361215699,1747349453246,-1195.79,0.00013835,2]
[361215700,1747349453256,-450.0,0.00013835,2]
[361215701,1747349453266,-450.0,0.00013835,2]
[361215702,1747349453275,-450.0,0.00013835,2]
[361215703,1747349453285,-527.33,0.00013835,2]
[361215704,1747349453294,-1061.96,0.00013835,2]
[361215705,1747349453304,-676.01,0.00013835,2]
[361215706,1747349453314,-450.0,0.00013835,2]
[361215707,1747349453324,-3119.37,0.00013835,2]
[361215708,1747349453334,-553.44,0.00013835,2]
[361215709,1747349453347,-450.0,0.00013835,2]
[361215710,1747349453357,-542.12,0.00013835,2]
[361215711,1747349453367,-529.74,0.00013835,2]
[361215712,1747349453376,-450.0,0.00013835,2]
[361215713,1747349453387,-450.0,0.00013835,2]
[361215714,1747349453397,-2673.61,0.00013835,2]
[361215715,1747349453406,-681.47,0.00013835,2]
[361215716,1747349453416,-706.13,0.00013835,2]
[361215717,1747349453426,-450.0,0.00013835,2]
[361215718,1747349453435,-3114.93,0.00013835,2]
[361215719,1747349453444,-450.0,0.00013835,2]
[361215720,1747349453454,-500.0,0.0001386,2]
[361215721,1747349453463,-151.0,0.000139,2]
[361215722,1747349453472,-151.0,0.000139,2]
[361215723,1747349453482,-151.0,0.000139,2]
[361215724,1747349453492,-151.0,0.000139,2]
[361215725,1747349453503,-153.0,0.000139,2]
[361215726,1747349453513,-153.0,0.000139,2]
[361215727,1747349453523,-153.0,0.000139,2]
[361215728,1747349453532,-13870.02736187,0.00013968,2]
[361215729,1747349453542,-2600.0,0.00013968,2]
[361215730,1747349453551,-172.426071,0.00013972,2]
[361215731,1747349453561,-151.0,0.00013972,2]
[361215732,1747349453570,-151.0,0.00013972,2]
[361215733,1747349453580,-151.0,0.00013972,2]
[361215734,1747349453589,-151.0,0.00013972,2]
[361215735,1747349453598,-151.0,0.00013972,2]
[361215736,1747349453607,-151.0,0.00013972,2]
[361215737,1747349453617,-151.0,0.00013972,2]
[361215738,1747349453626,-151.0,0.00013972,2]
[361215739,1747349453636,-155.196221,0.00013972,2]
[361215740,1747349453645,-450.0,0.00013972,2]
[361215741,1747349453655,-450.0,0.00013972,2]
[361215742,1747349453665,-275.09333378,0.00013972,2]
[361215743,1747349453674,-747.31,0.00013972,2]
[361215744,1747349453684,-151.0,0.00013972,2]
[361215745,1747349453693,-450.0,0.00013972,2]
[361215746,1747349453703,-450.0,0.00013972,2]
[361215747,1747349453712,-450.0,0.00013972,2]
[361215748,1747349453722,-300.0,0.00013972,2]
[361215749,1747349453732,-450.0,0.00013972,2]
[361215750,1747349453742,-450.0,0.00013972,2]
[361215751,1747349453751,-450.0,0.00013972,2]
[361215752,1747349453760,-450.0,0.00013972,2]
[361215753,1747349453770,-450.0,0.00013972,2]
[361215754,1747349453781,-450.0,0.00013972,2]
[361215755,1747349453792,-450.0,0.00013972,2]
[361215756,1747349453803,-450.0,0.00013972,2]
[361215757,1747349453815,-450.0,0.00013972,2]
[361215758,1747349453825,-450.0,0.00013972,2]
[361215759,1747349453835,-450.0,0.00013972,2]
[361215760,1747349453845,-450.0,0.00013972,2]
[361215761,1747349453855,-450.0,0.00013972,2]
[361215762,1747349453865,-450.0,0.00013972,2]
[361215763,1747349453876,-450.0,0.00013972,2]
[361215764,1747349453887,-567.76450915,0.00013972,2]
[361215765,1747349453896,-300.0,0.00013972,2]
[361215766,1747349453905,-790.382394,0.00013972,2]
[361215767,1747349453914,-450.0,0.00013972,2]
[361215768,1747349453923,-790.382394,0.00013972,2]
[361215769,1747349453933,-450.0,0.00013972,2]
[361215770,1747349453942,-450.0,0.00013972,2]
[361215771,1747349453951,-151.0,0.00013972,2]
[361215772,1747349453960,-450.0,0.00013972,2]
[361215773,1747349453970,-450.0,0.00013972,2]
[361215774,1747349453979,-361.51475219,0.00013972,2]
[361215775,1747349454566,-88.48524781,0.00013972,2]
[361215776,1747349454576,-450.0,0.00013972,2]
[361215777,1747349454586,-589.47,0.00013972,2]
[361215778,1747349454595,-204.684776,0.00013972,2]
[361215779,1747349454604,-450.0,0.00013972,2]
[361215780,1747349454614,-450.0,0.00013972,2]
[361215781,1747349454623,-151.0,0.00013972,2]
[361215782,1747349454632,-450.0,0.00013972,2]
[361215783,1747349454641,-450.0,0.00013972,2]
[361215784,1747349454650,-450.0,0.00013972,2]
[361215785,1747349454659,-490.81,0.00013972,2]
[361215786,1747349454669,-450.0,0.00013972,2]
[361215787,1747349454678,-450.0,0.00013972,2]
[361215788,1747349454688,-1428.99,0.00013972,2]
[361215789,1747349454697,-1357.68,0.00013972,2]
[361215790,1747349454706,-450.0,0.00013972,2]
[361215791,1747349454716,-806.16,0.00013972,2]
[361215792,1747349454725,-450.0,0.00013972,2]
[361215793,1747349454734,-450.0,0.00013972,2]
[361215794,1747349454744,-151.0,0.00013972,2]
[361215795,1747349454754,-2577.83,0.00013972,2]
[361215796,1747349454764,-1217.31,0.00013972,2]
[361215797,1747349454773,-151.0,0.00013972,2]
[361215798,1747349454783,-151.0,0.00013972,2]
[361215799,1747349454792,-350.0,0.00013972,2]
[361215800,1747349454802,-621.32,0.00013972,2]
[361215801,1747349454811,-151.0,0.00013972,2]
[361215802,1747349454821,-2051.6,0.00013972,2]
[361215803,1747349454830,-638.05,0.00013972,2]
[361215804,1747349454839,-450.0,0.00013972,2]
[361215805,1747349454848,-450.0,0.00013972,2]
[361215806,1747349454858,-480.88,0.00013972,2]
[361215807,1747349454867,-151.0,0.00013972,2]
[361215808,1747349454877,-155.101011,0.00013972,2]
[361215809,1747349454886,-450.0,0.00013972,2]
[361215810,1747349454895,-450.0,0.00013972,2]
[361215811,1747349454904,-141.59992489,0.00013972,2]
[361215812,1747349456002,250.85148,0.00027557,30]
[361215832,1747349998342,5000.0,0.00027512,30]
[361215851,1747350416164,-184.2871898,0.00013598,2]
[361215852,1747350416186,-207.4,0.0001369,2]
[361215853,1747350416207,-2332.0,0.00013697,2]
[361215854,1747350416228,-500.0,0.00013697,2]
[361215855,1747350416251,-500.0,0.00013697,2]
[361215856,1747350416273,-281.17710168,0.00013697,2]
[361215857,1747350416294,-591.73755981,0.00013697,2]
[361215858,1747350416314,-5000.0,0.00013698,2]
[361215859,1747350416335,-450.0,0.00013698,2]
[361215860,1747350416356,-450.0,0.00013698,2]
[361215861,1747350416377,-450.0,0.00013698,2]
[361215862,1747350416398,-450.0,0.00013698,2]
[361215863,1747350416418,-450.0,0.00013698,2]
[361215864,1747350416439,-450.0,0.00013698,2]
[361215865,1747350416460,-450.0,0.00013698,2]
[361215866,1747350416481,-450.0,0.00013698,2]
[361215867,1747350416503,-194.1182711,0.00013698,2]
[361215914,1747350632417,-544.877619,0.00013598,2]
[361215916,1747350632427,-544.87761898,0.00013667,2]
[361215918,1747350632437,-300.0,0.00013697,2]
[361215920,1747350632446,-450.0,0.00013698,2]
[361215922,1747350632455,-472.65686528,0.00013698,2]
[361215924,1747350632464,-450.0,0.00013698,2]
[361215926,1747350632473,-558.3,0.00013698,2]
[361215928,1747350632483,-450.0,0.00013698,2]
[361215930,1747350632492,-0.60927803,0.00013698,2]
[361215986,1747350638490,-449.39072197,0.00013698,2]
[361215987,1747350638501,-450.0,0.00013698,2]
[361215988,1747350638511,-450.0,0.00013698,2]
[361215989,1747350638522,-450.0,0.00013698,2]
[361215990,1747350638532,-153.20029415,0.00013698,2]
[361215991,1747350638542,-450.0,0.00013698,2]
[361215992,1747350638554,-450.0,0.00013698,2]
[361215993,1747350638564,-139.61775208,0.00013698,2]
[361216028,1747350644071,-310.38224792,0.00013698,2]
[361216029,1747350644081,-450.0,0.00013698,2]
[361216030,1747350644090,-450.0,0.00013698,2]
[361216031,1747350644100,-277.47554346,0.00013698,2]
[361216062,1747350651714,390.6,0.00027513,30]
[361216063,1747350765955,10111.41,0.00027513,120]
[361216085,1747351367177,2000.0,0.00027562,30]
[361216174,1747351711438,2000.0,0.00027636,120]
[361216175,1747351721876,-250.16163545,0.0001,2]
[361216176,1747351725239,-165.7235016,0.0001,2]
[361216177,1747351727810,-202.71509368,0.0001,2]
[361216178,1747351735168,-299.47590942,0.0001,2]
[361216179,1747351742496,-300.0,9.999e-05,2]
[361216180,1747351742520,-53.41686797,0.0001,2]
[361216181,1747351745177,-177.90104503,0.0001,2]
[361216182,1747351750785,-334.43021759,0.0001,2]
[361216183,1747351753462,-165.72350157,0.0001,2]
[361216184,1747351758424,-320.37467424,0.0001,2]
[361216185,1747351759893,-286.59391669,0.0001,2]
[361216186,1747351761360,-260.31795641,0.0001,2]
[361216187,1747351766324,-230.50253992,0.0001,2]
[361216188,1747351768373,-302.60764617,0.0001,2]
[361216190,1747351775789,-160.38171384,0.0001,2]
[361216191,1747351777400,-323.10784727,0.0001,2]
[361216195,1747351784110,-241.50479543,0.0001,2]
[361216196,1747351791481,-185.29989962,0.0001,2]
[361216197,1747351793679,-244.06422832,0.0001,2]
[361216198,1747351798753,-398.25407141,0.0001,2]
[361216199,1747351800898,-192.12025089,0.0001,2]
[361216200,1747351806879,-211.33230852,9.999e-05,2]
[361216201,1747351808412,-88.66769148,9.999e-05,2]
[361216202,1747351808437,-152.72533248,9.999e-05,2]
[361216203,1747351822885,-147.27466752,9.999e-05,2]
[361216204,1747351823030,-77.69686785,9.999e-05,2]
[361216205,1747351825525,-222.30313215,9.999e-05,2]
[361216206,1747351825547,-55.10268752,9.999e-05,2]
[361216207,1747351830899,10000.0,0.00027397,120]
[361216231,1747351833562,-233.85108006,9.999e-05,2]
[361216232,1747351835997,-11.04623242,9.999e-05,2]
[361216233,1747351836023,-175.34805358,9.999e-05,2]
[361216263,1747351838624,-1024.65194642,9.999e-05,2]
[361216265,1747351838634,-300.0,9.999e-05,2]
[361216267,1747351838644,-2921.12620951,0.0001,2]
[361216280,1747351838797,-450.80493321,0.0001,2]
[361216368,1747351841091,-182.90394334,0.0001,2]
[361216372,1747351842514,-267.9280847,0.0001,2]
[361216391,1747351844388,-0.01338301,0.0001,2]
[361216395,1747351844423,-152.00844339,0.0001,2]
[361216396,1747351844441,-9358.0156007,0.0001,2]
[361216397,1747351844451,-250.0,0.0001098,2]
[361216398,1747351844460,-179.0,0.00010999,2]
[361216399,1747351844470,-420.0,0.00010999,2]
[361216400,1747351844479,-1680.0,0.00010999,2]
[361216401,1747351844489,-420.0,0.00010999,2]
[361216402,1747351844498,-1034.0846206,0.00012066,2]
[361216403,1747351844508,-587.0,0.00012099,2]
[361216404,1747351844517,-2351.0,0.00012099,2]
[361216405,1747351844527,-480.0,0.00012099,2]
[361216406,1747351844537,-152.0,0.00012231,2]
[361216407,1747351844546,-3268.42809958,0.00012329,2]
[361216416,1747351846988,-2312.28190042,0.00012329,2]
[361216417,1747351846998,-4650.59,0.00012329,2]
[361216418,1747351847008,-3875.49,0.00012329,2]
[361216419,1747351847017,-3229.57,0.00012329,2]
[361216420,1747351847027,-2691.31,0.00012329,2]
[361216421,1747351847036,-2242.76,0.00012329,2]
[361216422,1747351847046,-467.5035788,0.00012397,2]
[361216423,1747351847055,-2044.95511254,0.00012397,2]
[361216424,1747351847064,-2999.8157403,0.00012416,2]
[361216425,1747351847073,-639.8061583,0.00012452,2]
[361216426,1747351847083,-500.0,0.00012499,2]
[361216427,1747351847092,-500.0,0.00012499,2]
[361216428,1747351847101,-358.92979051,0.00012499,2]
[361216429,1747351847110,-500.0,0.00012499,2]
[361216430,1747351847119,-500.0,0.00012499,2]
[361216432,1747351847128,-500.0,0.00012499,2]
[361216433,1747351847137,-511.11932674,0.00012499,2]
[361216434,1747351847146,-500.0,0.00012499,2]
[361216435,1747351847155,-500.0,0.00012499,2]
[361216436,1747351847164,-500.0,0.00012499,2]
[361216437,1747351847173,-500.0,0.00012499,2]
[361216438,1747351847183,-500.0,0.00012499,2]
[361216439,1747351847192,-599.2788703,0.00012499,2]
[361216440,1747351847202,-500.0,0.00012499,2]
[361216441,1747351847211,-500.0,0.00012499,2]
[361216442,1747351847222,-500.0,0.00012499,2]
[361216443,1747351847232,-500.0,0.00012499,2]
[361216444,1747351847242,-500.0,0.00012499,2]
[361216445,1747351847252,-500.0,0.00012499,2]
[361216446,1747351847262,-500.0,0.00012499,2]
[361216447,1747351847271,-500.0,0.00012499,2]
[361216448,1747351847281,-500.0,0.00012499,2]
[361216449,1747351847291,-500.0,0.00012499,2]
[361216450,1747351847300,-500.0,0.00012499,2]
[361216451,1747351847309,-500.0,0.00012499,2]
[361216452,1747351847319,-500.0,0.00012499,2]
[361216453,1747351847328,-490.61459033,0.00012499,2]
[361216454,1747351847338,-500.0,0.00012499,2]
[361216455,1747351847347,-500.0,0.00012499,2]
[361216456,1747351847356,-500.0,0.00012499,2]
[361216457,1747351847365,-500.0,0.00012499,2]
[361216458,1747351847375,-500.0,0.00012499,2]
[361216459,1747351847384,-500.0,0.00012499,2]
[361216460,1747351847398,-500.0,0.00012499,2]
[361216461,1747351847407,-629.71738358,0.00012499,2]
[361216462,1747351847416,-500.0,0.00012499,2]
[361216463,1747351847426,-500.0,0.00012499,2]
[361216464,1747351847435,-339.61037776,0.00012499,2]
[361216465,1747351847444,-500.0,0.00012499,2]
[361216466,1747351847453,-500.0,0.00012499,2]
[361216467,1747351847462,-500.0,0.00012499,2]
[361216468,1747351847472,-500.0,0.00012499,2]
[361216469,1747351847481,-500.0,0.00012499,2]
[361216470,1747351847490,-500.0,0.00012499,2]
[361216471,1747351847499,-500.0,0.00012499,2]
[361216472,1747351847508,-500.0,0.00012499,2]
[361216473,1747351847518,-500.0,0.00012499,2]
[361216474,1747351847527,-500.0,0.00012499,2]
[361216475,1747351847536,-500.0,0.00012499,2]
[361216476,1747351847545,-500.0,0.00012499,2]
[361216477,1747351847555,-500.0,0.00012499,2]
[361216478,1747351847564,-500.0,0.00012499,2]
[361216479,1747351847574,-500.0,0.00012499,2]
[361216480,1747351847583,-500.0,0.00012499,2]
[361216481,1747351847593,-500.0,0.00012499,2]
[361216482,1747351847603,-500.0,0.00012499,2]
[361216483,1747351847613,-500.0,0.00012499,2]
[361216484,1747351847623,-500.0,0.00012499,2]
[361216485,1747351847632,-500.0,0.00012499,2]
[361216486,1747351847642,-500.0,0.00012499,2]
[361216487,1747351847652,-500.0,0.00012499,2]
[361216488,1747351847661,-500.0,0.00012499,2]
[361216489,1747351847671,-500.0,0.00012499,2]
[361216490,1747351847681,-500.0,0.00012499,2]
[361216491,1747351847691,-500.0,0.00012499,2]
[361216492,1747351847700,-500.0,0.00012499,2]
[361216493,1747351847709,-500.0,0.00012499,2]
[361216494,1747351847719,-500.0,0.00012499,2]
[361216495,1747351847729,-500.0,0.00012499,2]
[361216496,1747351847738,-500.0,0.00012499,2]
[361216497,1747351847748,-500.0,0.00012499,2]
[361216498,1747351847757,-500.0,0.00012499,2]
[361216499,1747351847767,-500.0,0.00012499,2]
[361216500,1747351847777,-500.0,0.00012499,2]
[361216501,1747351847786,-500.0,0.00012499,2]
[361216502,1747351847796,-500.0,0.00012499,2]
[361216503,1747351847806,-437.43760513,0.00012499,2]
[361216504,1747351847815,-500.0,0.00012499,2]
[361216505,1747351847825,-467.67839646,0.00012499,2]
[361216506,1747351847927,-11268.86212324,0.000125,2]
[361216507,1747351847937,-192.0,0.00012506,2]
[361216508,1747351847947,-24900.0,0.00012517,2]
[361216509,1747351847957,-246.74589608,0.00012679,2]
[361216510,1747351847967,-181.0,0.00012697,2]
[361216511,1747351847976,-2999.81574026,0.00012712,2]
[361216512,1747351847986,-176.735029,0.00012769,2]
[361216513,1747351847995,-570.0011998,0.0001278,2]
[361216514,1747351848005,-256.3687183,0.0001278,2]
[361216515,1747351848014,-244.0,0.00012788,2]
[361216516,1747351848023,-2999.81574026,0.00013007,2]
[361216517,1747351848033,-207.4,0.00013147,2]
[361216518,1747351848043,-500.0,0.00013302,2]
[361216519,1747351848052,-500.0,0.00013302,2]
[361216520,1747351848062,-500.0,0.00013302,2]
[361216521,1747351848071,-500.0,0.00013302,2]
[361216522,1747351848081,-516.63107887,0.00013302,2]
[361216523,1747351848090,-500.0,0.00013302,2]
[361216524,1747351848100,-500.0,0.00013302,2]
[361216525,1747351848110,-500.0,0.00013302,2]
[361216526,1747351848119,-500.0,0.00013302,2]
[361216527,1747351848129,-500.0,0.00013302,2]
[361216528,1747351848138,-445.50756952,0.00013302,2]
[361216529,1747351848148,-500.0,0.00013302,2]
[361216530,1747351848157,-500.0,0.00013302,2]